bitfinex-derivatives/quotes_SOLF0:USTF0_20250928
["timestamp","ask_amount","ask_price","bid_price","bid_amount"]
[1759095408852,10.66250442,206.73,206.69,7.94]
[1759095409055,4.351,206.77,206.69,7.94]
[1759095409257,10.66157975,206.76,206.69,7.94]
[1759095409461,7.31,206.74,206.69,7.94]
[1759095409651,7.31,206.72,206.69,7.94]
[1759095410253,7.31,206.76,206.69,7.94]
[1759095410453,3.35160231,206.75,206.68,4.3529]
[1759095410652,3.35160231,206.74,206.69,7.94]
[1759095410859,10.66160231,206.73,206.68,4.3529]
[1759095411057,7.31,206.73,206.68,4.3529]
[1759095412361,7.31,206.73,206.69,7.94]
[1759095412565,7.31,206.77,206.68,75.6517]
[1759095412765,7.31,206.75,206.68,7.94]
[1759095413060,3.35190336,206.74,206.68,7.94]
[1759095413263,7.31,206.75,206.68,7.94]
[1759095413460,3.35190961,206.74,206.68,7.94]
[1759095413661,7.31,206.75,206.69,4.3526]
[1759095413860,7.31,206.75,206.67,1.67651987]
[1759095413861,3.35176854,206.74,206.68,7.59]
[1759095414057,7.31,206.75,206.69,1.67651987]
[1759095414259,3.35177089,206.74,206.69,1.67651987]
[1759095414461,7.31,206.75,206.7,11.9423]
[1759095414663,7.31,206.75,206.71,7.59]
[1759095414865,7.31,206.75,206.7,4.3523]
[1759095415259,7.31,206.75,206.71,7.59]
[1759095415460,7.84,206.79,206.7,4.3523]
[1759095415658,7.84,206.77,206.7,11.9423]
[1759095415861,7.84,206.75,206.71,7.59]
[1759095416057,7.84,206.79,206.71,7.59]
[1759095416267,7.84,206.79,206.69,1.67651987]
[1759095416268,7.84,206.77,206.68,7.59]
[1759095416466,1.67651987,206.8,206.68,7.59]
[1759095416467,7.84,206.75,206.68,7.59]
[1759095416767,3.3518821,206.74,206.68,7.59]
[1759095416967,7.84,206.75,206.68,7.59]
[1759095417169,3.35158163,206.74,206.68,7.59]
[1759095417468,7.84,206.75,206.68,7.59]
[1759095417669,7.84,206.73,206.68,11.9427]
[1759095417868,7.84,206.76,206.69,7.59]
[1759095418062,3.35156336,206.75,206.69,7.59]
[1759095418263,11.19156336,206.74,206.68,7.59]
[1759095418467,7.84,206.74,206.68,7.59]
[1759095419769,4.351,206.77,206.67,1.67651987]
[1759095419770,4.351,206.77,206.69,11.9425]
[1759095419967,7.84,206.75,206.69,11.9425]
[1759095420167,7.84,206.73,206.7,7.59]
[1759095420369,7.84,206.76,206.7,7.59]
[1759095420665,7.84,206.74,206.7,7.59]
[1759095420866,7.84,206.76,206.7,7.59]
[1759095421062,7.84,206.74,206.7,7.59]
[1759095421268,4.351,206.77,206.7,7.59]
[1759095421468,11.19135983,206.76,206.7,7.59]
[1759095421769,3.35135983,206.75,206.7,7.59]
[1759095421962,7.84,206.73,206.7,7.59]
[1759095422769,7.84,206.73,206.69,4.3525]
[1759095422969,7.84,206.73,206.7,7.59]
[1759095424169,7.84,206.76,206.7,7.59]
[1759095424365,7.84,206.74,206.7,7.59]
[1759095424565,7.84,206.76,206.7,7.59]
[1759095424870,3.3520715,206.75,206.7,7.59]
[1759095425059,7.84,206.73,206.7,7.59]
[1759095428576,4.351,206.77,206.7,7.59]
[1759095428770,11.19142669,206.76,206.7,7.59]
[1759095429067,3.35142669,206.75,206.7,7.59]
[1759095429272,7.84,206.73,206.7,7.59]
[1759095429470,7.84,206.75,206.7,7.59]
[1759095429673,7.84,206.73,206.7,7.59]
[1759095433676,7.84,206.73,206.68,4.3527]
[1759095434074,7.84,206.73,206.68,6.02921987]
[1759095434665,7.84,206.73,206.69,7.94]
[1759095434872,7.84,206.73,206.68,6.02921987]
[1759095435274,7.84,206.73,206.69,7.94]
[1759095435575,7.84,206.73,206.68,6.02921987]
[1759095435876,7.84,206.73,206.69,7.94]
[1759095436667,7.84,206.73,206.68,6.02921987]
[1759095437273,7.84,206.73,206.69,7.94]
[1759095438070,7.84,206.73,206.68,6.02921987]
[1759095438365,7.27,206.75,206.69,7.94]
[1759095438673,7.27,206.73,206.68,13.96921987]
[1759095438977,7.27,206.74,206.68,13.96921987]
[1759095442183,7.27,206.74,206.68,6.02921987]
[1759095442383,7.27,206.77,206.69,7.94]
[1759095442680,7.27,206.75,206.69,7.94]
[1759095442881,7.27,206.73,206.68,6.02921987]
[1759095443083,7.27,206.73,206.7,7.94]
[1759095443277,7.27,206.73,206.69,4.3525]
[1759095444278,7.27,206.73,206.7,7.98]
[1759095444676,7.48,206.77,206.7,7.98]
[1759095444876,3.33438866,206.76,206.7,7.98]
[1759095445082,10.81438866,206.75,206.7,7.98]
[1759095445277,7.48,206.73,206.69,4.3525]
[1759095445477,7.48,206.73,206.7,7.98]
[1759095446783,7.48,206.73,206.69,4.3525]
[1759095447284,7.48,206.73,206.7,7.98]
[1759095447682,7.48,206.73,206.69,4.3525]
[1759095447885,7.48,206.73,206.7,7.98]
[1759095448089,7.48,206.73,206.69,4.3525]
[1759095448287,4.3508,206.78,206.69,12.3325]
[1759095448486,7.48,206.76,206.69,12.3325]
[1759095448687,3.3362484,206.75,206.69,4.3525]
[1759095448884,7.48,206.73,206.69,4.3525]
[1759095449289,7.48,206.73,206.69,6.02901987]
[1759095449889,7.48,206.73,206.7,7.98]
[1759095450092,7.48,206.73,206.69,6.02901987]
[1759095450286,7.48,206.73,206.7,7.98]
[1759095450492,7.48,206.73,206.69,6.02901987]
[1759095451182,7.48,206.73,206.7,7.98]
[1759095451383,7.48,206.73,206.69,6.02901987]
[1759095451591,7.48,206.73,206.7,7.98]
[1759095452491,7.48,206.73,206.69,6.02901987]
[1759095452694,7.48,206.73,206.7,7.98]
[1759095453594,7.48,206.77,206.7,7.98]
[1759095453793,3.33146399,206.76,206.7,7.98]
[1759095453992,4.3508,206.78,206.7,7.98]
[1759095453993,3.33146399,206.75,206.7,7.98]
[1759095454190,7.48,206.73,206.7,7.98]
[1759095455190,7.48,206.77,206.7,7.98]
[1759095455393,3.33176237,206.76,206.7,7.98]
[1759095455596,3.33176237,206.75,206.7,7.98]
[1759095455795,7.48,206.73,206.7,7.98]
[1759095456690,7.48,206.73,206.69,4.3525]
[1759095456885,7.48,206.73,206.7,7.98]
[1759095457091,7.48,206.73,206.69,4.3525]
[1759095457497,7.48,206.73,206.7,7.98]
[1759095457696,7.48,206.73,206.71,7.98]
[1759095460204,7.48,206.77,206.71,7.98]
[1759095460401,7.48,206.75,206.71,7.98]
[1759095460604,7.48,206.73,206.71,7.98]
[1759095461500,4.3511,206.77,206.69,4.3525]
[1759095461699,7.48,206.75,206.66,12.3333]
[1759095461894,7.48,206.73,206.66,12.3333]
[1759095462098,3.33715831,206.72,206.67,7.98]
[1759095462297,7.48,206.7,206.67,7.98]
[1759095463206,7.48,206.74,206.65,7.98]
[1759095463504,7.48,206.72,206.65,7.98]
[1759095464705,4.3514,206.76,206.67,4.3531]
[1759095464905,10.81408689,206.75,206.67,4.3531]
[1759095465095,7.48,206.73,206.67,4.3531]
[1759095465301,7.48,206.71,206.68,7.98]
[1759095465599,7.48,206.75,206.68,7.98]
[1759095465798,3.33368517,206.74,206.68,7.98]
[1759095466002,7.48,206.72,206.68,7.98]
[1759095466204,10.81368517,206.71,206.68,7.98]
[1759095466408,7.48,206.71,206.68,7.98]
[1759095468206,4.3514,206.76,206.68,7.98]
[1759095468408,10.81244661,206.75,206.68,7.98]
[1759095468610,3.33244661,206.74,206.68,7.98]
[1759095468806,3.33244661,206.73,206.68,7.98]
[1759095469006,3.33244661,206.72,206.68,7.98]
[1759095469207,7.48,206.75,206.68,7.98]
[1759095469508,3.33230564,206.74,206.68,7.98]
[1759095469708,7.48,206.72,206.68,7.98]
[1759095469908,7.48,206.75,206.68,7.98]
[1759095470108,3.33230857,206.74,206.68,7.98]
[1759095470408,7.48,206.72,206.68,7.98]
[1759095470708,7.48,206.75,206.68,7.98]
[1759095471009,3.33218236,206.74,206.68,7.98]
[1759095471306,3.33218236,206.73,206.68,7.98]
[1759095471509,7.48,206.71,206.68,7.98]
[1759095473711,7.48,206.71,206.67,4.3531]
[1759095474007,7.48,206.71,206.68,7.4]
[1759095474210,7.48,206.71,206.67,4.3531]
[1759095474407,7.48,206.71,206.68,7.4]
[1759095474809,7.48,206.71,206.67,4.3531]
[1759095476499,7.48,206.71,206.68,7.4]
[1759095476704,7.48,206.71,206.67,4.3531]
[1759095477214,7.64,206.75,206.68,7.4]
[1759095477409,3.33145413,206.74,206.68,7.4]
[1759095477611,3.33145413,206.73,206.68,7.4]
[1759095477814,7.64,206.74,206.68,7.4]
[1759095478014,3.3325677,206.73,206.68,7.4]
[1759095478218,7.64,206.75,206.68,7.4]
[1759095478414,7.64,206.73,206.67,4.3531]
[1759095478612,7.64,206.71,206.67,4.3531]
[1759095479115,7.64,206.71,206.68,7.4]
[1759095479311,7.64,206.71,206.67,4.3531]
[1759095479507,7.64,206.71,206.68,7.4]
[1759095479716,7.64,206.71,206.67,4.3531]
[1759095479916,7.64,206.71,206.68,7.4]
[1759095480109,7.64,206.71,206.67,4.3531]
[1759095480305,75.3198,206.78,206.68,7.4]
[1759095480506,7.64,206.76,206.65,7.4]
[1759095480711,7.64,206.74,206.65,7.4]
[1759095480914,7.64,206.72,206.63,0.84187099]
[1759095481114,7.64,206.7,206.63,0.84187099]
[1759095482620,7.64,206.7,206.64,7.4]
[1759095483719,7.64,206.7,206.64,11.7537]
[1759095487420,7.64,206.7,206.64,4.3537]
[1759095487620,4.352,206.73,206.64,4.3537]
[1759095487820,4.352,206.73,206.65,7.4]
[1759095487821,10.96821491,206.72,206.65,7.4]
[1759095488016,7.64,206.7,206.64,4.3537]
[1759095488221,7.64,206.72,206.65,7.4]
[1759095488418,7.64,206.7,206.65,7.4]
[1759095488614,7.64,206.72,206.65,7.4]
[1759095488813,3.32775564,206.71,206.64,4.3537]
[1759095489016,7.64,206.72,206.65,7.4]
[1759095489625,3.32925743,206.71,206.65,7.4]
[1759095489819,7.64,206.72,206.65,7.4]
[1759095490019,7.64,206.7,206.64,4.3537]
[1759095490226,7.64,206.72,206.65,7.4]
[1759095490421,3.32946534,206.71,206.64,4.3537]
[1759095490634,7.64,206.72,206.65,7.4]
[1759095490933,7.64,206.7,206.64,11.7537]
[1759095493434,4.352,206.73,206.64,11.7537]
[1759095493634,7.54,206.71,206.64,11.7537]
[1759095495235,4.352,206.73,206.64,11.7537]
[1759095495436,7.54,206.71,206.64,11.7537]
[1759095497932,4.352,206.73,206.64,11.7537]
[1759095498136,7.54,206.71,206.64,11.7537]
[1759095498338,70.30704339,206.76,206.64,7.47]
[1759095498339,7.54,206.75,206.64,7.47]
[1759095498639,4.3513,206.76,206.64,7.47]
[1759095498640,7.54,206.73,206.64,7.47]
[1759095498839,7.54,206.71,206.64,7.47]
[1759095499737,7.54,206.71,206.67,7.47]
[1759095499933,7.54,206.71,206.66,4.3531]
[1759095500329,7.54,206.71,206.67,7.47]
[1759095500536,4.3516,206.75,206.66,4.3531]
[1759095500734,10.91107649,206.74,206.67,7.47]
[1759095500935,7.54,206.72,206.67,7.47]
[1759095501238,4.3516,206.75,206.66,11.8231]
[1759095501434,7.54,206.73,206.66,11.8231]
[1759095501636,3.37124575,206.72,206.66,11.8231]
[1759095501937,7.54,206.73,206.66,11.8231]
[1759095502138,10.91124575,206.72,206.66,11.8231]
[1759095502336,7.54,206.72,206.66,11.8231]
[1759095503833,7.37,206.76,206.66,4.3531]
[1759095504140,7.37,206.74,206.67,7.35]
[1759095504342,3.37196654,206.73,206.67,7.35]
[1759095504539,3.37196654,206.72,206.66,4.3531]
[1759095504737,7.37,206.76,206.67,7.35]
[1759095504938,7.37,206.74,206.67,7.35]
[1759095505140,3.37233139,206.73,206.67,7.35]
[1759095505339,7.37,206.71,206.66,4.3531]
[1759095505541,7.37,206.71,206.67,7.35]
[1759095505743,7.37,206.71,206.66,4.3531]
[1759095506339,7.37,206.71,206.67,7.35]
[1759095506742,7.37,206.71,206.66,4.3531]
[1759095507037,7.37,206.71,206.67,7.35]
[1759095507238,7.37,206.71,206.66,4.3531]
[1759095507434,7.37,206.71,206.67,7.35]
[1759095507633,7.37,206.71,206.66,4.3531]
[1759095507832,7.37,206.71,206.67,7.35]
[1759095508034,7.37,206.71,206.66,4.3531]
[1759095509542,7.37,206.71,206.67,7.35]
[1759095510043,7.37,206.75,206.67,7.35]
[1759095510235,7.37,206.73,206.67,7.35]
[1759095510434,3.37399758,206.72,206.67,7.35]
[1759095510652,7.37,206.75,206.67,7.35]
[1759095510840,7.37,206.73,206.67,11.7029]
[1759095511146,7.37,206.71,206.68,7.35]
[1759095513344,7.37,206.71,206.67,4.3529]
[1759095514050,7.37,206.71,206.68,7.35]
[1759095514346,7.37,206.71,206.67,4.3529]
[1759095514750,7.37,206.71,206.68,7.35]
[1759095515252,7.37,206.71,206.67,4.3529]
[1759095515750,7.37,206.71,206.68,7.35]
[1759095516148,7.37,206.71,206.67,4.3529]
[1759095516548,7.37,206.71,206.68,7.35]
[1759095516850,7.37,206.71,206.67,4.3529]
[1759095517948,7.37,206.71,206.68,7.35]
[1759095518952,7.37,206.71,206.67,4.3529]
[1759095519353,7.37,206.71,206.68,7.35]
[1759095531262,7.37,206.71,206.67,4.3529]
[1759095531558,7.37,206.71,206.68,7.35]
[1759095534365,3.39015222,206.7,206.61,7.48]
[1759095534562,7.51,206.68,206.61,7.48]
[1759095534762,3.39015222,206.67,206.6,1.67728563]
[1759095534963,7.51,206.69,206.61,7.48]
[1759095535160,7.51,206.67,206.61,7.48]
[1759095542373,7.51,206.67,206.58,7.48]
[1759095542374,7.51,206.65,206.58,7.48]
[1759095543566,7.51,206.63,206.58,7.48]
[1759095543871,7.51,206.65,206.57,9.15728563]
[1759095544070,7.51,206.63,206.57,9.15728563]
[1759095544273,7.51,206.63,206.57,7.48]
[1759095544969,7.51,206.63,206.57,21.70970203]
[1759095545171,7.51,206.63,206.57,7.48]
[1759095549471,7.51,206.63,206.57,22.25258774]
[1759095551068,7.51,206.65,206.57,14.77258774]
[1759095551268,7.51,206.65,206.56,6.03268563]
[1759095551669,7.51,206.65,206.57,7.77]
[1759095551969,7.43,206.61,206.51,7.77]
[1759095552168,7.43,206.61,206.52,1.67728563]
[1759095552873,7.43,206.61,206.51,7.77]
[1759095553061,3.37192154,206.6,206.51,9.44728563]
[1759095553268,7.43,206.62,206.51,9.44728563]
[1759095553468,4.355,206.59,206.51,7.77]
[1759095553772,7.43,206.58,206.51,7.77]
[1759095554075,7.43,206.6,206.51,7.77]
[1759095554973,7.43,206.58,206.5,14.63313301]
[1759095555168,7.43,206.58,206.49,6.87652924]
[1759095556173,11.7852,206.58,206.48,7.77]
[1759095556470,1.67728563,206.59,206.48,9.44728563]
[1759095556672,1.67728563,206.62,206.52,7.77]
[1759095556869,7.43,206.61,206.52,7.77]
[1759095559276,11.7845,206.61,206.52,7.77]
[1759095559678,11.7845,206.61,206.52,12.1261]
[1759095559976,11.7845,206.61,206.53,7.77]
[1759095560483,7.43,206.58,206.51,7.77]
[1759095562077,7.43,206.58,206.52,7.77]
[1759095564177,7.44,206.61,206.52,7.77]
[1759095564380,7.44,206.61,206.51,4.3563]
[1759095564381,7.44,206.61,206.54,7.61]
[1759095565574,11.7945,206.61,206.54,7.61]
[1759095568182,11.7945,206.61,206.54,11.9658]
[1759095569683,7.44,206.6,206.54,11.9658]
[1759095571677,7.44,206.6,206.55,1.67728563]
[1759095571878,7.44,206.63,206.56,7.61]
[1759095572679,7.44,206.63,206.57,1.67728563]
[1759095572871,7.44,206.63,206.58,7.61]
[1759095573183,7.44,206.63,206.57,1.67728563]
[1759095573380,7.44,206.63,206.58,7.61]
[1759095573682,7.44,206.63,206.58,4.3548]
[1759095574683,7.44,206.63,206.59,7.61]
[1759095574882,7.44,206.67,206.59,11.9646]
[1759095576283,7.44,206.7,206.62,7.61]
[1759095576473,3.37073802,206.69,206.62,7.61]
[1759095576677,7.44,206.7,206.62,7.61]
[1759095576887,7.44,206.68,206.62,7.61]
[1759095578278,7.44,206.68,206.62,4.3539]
[1759095578690,7.44,206.68,206.63,7.61]
[1759095579281,7.44,206.68,206.62,4.3539]
[1759095579484,4.3518,206.74,206.65,7.61]
[1759095579485,7.44,206.73,206.65,7.61]
[1759095579680,7.44,206.71,206.65,7.61]
[1759095579880,10.81558264,206.7,206.64,11.9637]
[1759095580082,7.44,206.7,206.64,11.9637]
[1759095580387,7.44,206.73,206.64,4.3537]
[1759095580585,7.44,206.71,206.64,4.3537]
[1759095580787,10.81565466,206.7,206.65,7.61]
[1759095580979,4.3518,206.74,206.64,11.9637]
[1759095581186,7.44,206.72,206.64,11.9637]
[1759095581389,3.37565202,206.71,206.64,11.9637]
[1759095581689,3.37565202,206.7,206.64,11.9637]
[1759095581882,7.44,206.72,206.64,11.9637]
[1759095582077,3.37485131,206.71,206.64,11.9637]
[1759095582388,10.81485131,206.7,206.64,11.9637]
[1759095582584,7.44,206.7,206.64,11.9637]
[1759095583492,7.44,206.7,206.64,7.61]
[1759095583787,7.44,206.68,206.64,7.61]
[1759095584086,7.44,206.68,206.61,11.9643]
[1759095600204,7.61,206.68,206.59,4.3548]
[1759095600396,7.61,206.66,206.6,7.26]
[1759095600592,21.24,206.73,206.57,117.9]
[1759095600593,3.37474692,206.65,206.57,117.9]
[1759095600897,11.963,206.68,206.56,7.26]
[1759095601097,3.37509437,206.67,206.58,67.7447]
[1759095601296,0.42733545,206.73,206.59,7.26]
[1759095601498,10.98552439,206.72,206.59,7.26]
[1759095601700,7.61,206.7,206.59,7.26]
[1759095601903,7.61,206.68,206.6,4.3544]
[1759095602110,7.61,206.68,206.61,7.26]
[1759095603203,3.37668764,206.67,206.61,7.26]
[1759095603504,7.61,206.68,206.61,7.26]
[1759095603705,3.37687408,206.67,206.61,7.26]
[1759095603904,7.61,206.68,206.61,7.26]
[1759095604101,3.37673017,206.67,206.61,7.26]
[1759095604301,7.61,206.68,206.61,7.26]
[1759095604600,3.3772863,206.67,206.61,7.26]
[1759095604802,7.61,206.68,206.61,7.26]
[1759095605110,3.37714237,206.67,206.61,7.26]
[1759095605299,7.61,206.68,206.61,7.26]
[1759095605506,3.37782969,206.67,206.61,7.26]
[1759095605696,7.61,206.68,206.61,7.26]
[1759095605899,3.37782969,206.67,206.61,7.26]
[1759095606101,7.61,206.68,206.61,7.26]
[1759095606302,3.37880914,206.67,206.61,7.26]
[1759095606608,7.61,206.68,206.61,7.26]
[1759095606807,3.37920929,206.67,206.61,7.26]
[1759095607108,7.61,206.68,206.61,11.6142]
[1759095607308,7.61,206.71,206.62,7.26]
[1759095607497,3.38019387,206.7,206.62,7.26]
[1759095607700,3.38019387,206.69,206.62,7.26]
[1759095607897,7.61,206.71,206.62,7.26]
[1759095608208,3.3801939,206.7,206.62,7.26]
[1759095608507,7.61,206.71,206.65,7.26]
[1759095608711,3.38079733,206.7,206.64,4.3535]
[1759095608906,7.61,206.71,206.65,7.26]
[1759095609208,3.38078415,206.7,206.65,7.26]
[1759095609412,7.61,206.69,206.64,4.3535]
[1759095609608,7.61,206.69,206.65,7.26]
[1759095609802,7.61,206.69,206.64,4.3535]
[1759095610210,7.61,206.69,206.65,7.26]
[1759095610405,0.42733545,206.73,206.65,7.26]
[1759095610608,10.99206885,206.72,206.65,7.26]
[1759095610808,3.38206885,206.71,206.65,7.26]
[1759095611003,3.38206885,206.7,206.65,7.26]
[1759095611200,7.61,206.72,206.65,7.26]
[1759095611405,3.36318379,206.71,206.65,7.26]
[1759095611607,3.36318379,206.7,206.65,7.53]
[1759095611809,7.61,206.72,206.65,7.53]
[1759095612004,3.36318479,206.71,206.65,7.53]
[1759095612205,3.36318479,206.7,206.65,7.53]
[1759095612410,7.22,206.72,206.65,7.53]
[1759095612607,3.36396604,206.71,206.65,7.53]
[1759095612909,3.36396604,206.7,206.64,4.3535]
[1759095613210,7.22,206.7,206.65,7.53]
[1759095613610,7.22,206.7,206.64,4.3535]
[1759095613807,7.22,206.7,206.65,7.53]
[1759095614109,7.22,206.7,206.64,4.3535]
[1759095614311,7.22,206.7,206.65,7.53]
[1759095614512,7.22,206.7,206.64,4.3535]
[1759095614712,7.22,206.73,206.65,7.53]
[1759095615013,7.22,206.71,206.65,7.53]
[1759095615214,7.22,206.69,206.62,7.53]
[1759095615510,7.22,206.67,206.59,7.53]
[1759095615715,3.36543932,206.66,206.59,7.53]
[1759095615915,7.22,206.67,206.59,7.53]
[1759095616110,3.3662604,206.66,206.59,7.53]
[1759095616413,7.22,206.67,206.59,7.53]
[1759095616713,3.36763873,206.66,206.59,11.8848]
[1759095616912,7.22,206.67,206.59,11.8848]
[1759095617114,3.36763953,206.66,206.59,11.8848]
[1759095617315,3.36892062,206.65,206.59,11.8848]
[1759095617516,7.22,206.68,206.59,7.53]
[1759095617813,7.22,206.66,206.59,7.53]
[1759095618013,3.36890022,206.65,206.59,7.53]
[1759095618210,3.36890022,206.64,206.58,7.53]
[1759095618409,7.22,206.65,206.58,7.53]
[1759095618612,3.36954155,206.64,206.58,7.53]
[1759095618810,7.22,206.65,206.58,7.53]
[1759095619013,3.36954155,206.64,206.58,7.53]
[1759095619215,7.22,206.65,206.58,7.53]
[1759095619408,3.37027726,206.64,206.58,11.8848]
[1759095619608,7.22,206.65,206.58,11.8848]
[1759095619808,3.37027568,206.64,206.58,11.8848]
[1759095620009,7.22,206.65,206.58,11.8848]
[1759095620214,3.3697222,206.64,206.58,11.8848]
[1759095620517,7.22,206.65,206.58,11.8848]
[1759095620715,3.36979655,206.64,206.58,11.8848]
[1759095620916,7.22,206.65,206.58,11.8848]
[1759095621117,3.36979022,206.64,206.58,11.8848]
[1759095621316,7.22,206.65,206.58,11.8848]
[1759095621617,3.37016444,206.64,206.58,11.8848]
[1759095621816,7.22,206.65,206.58,11.8848]
[1759095622022,3.37002487,206.64,206.58,11.8848]
[1759095622315,7.22,206.65,206.58,11.8848]
[1759095622518,3.37007431,206.64,206.58,11.8848]
[1759095622718,7.22,206.65,206.58,11.8848]
[1759095622918,3.37007431,206.64,206.59,4.3546]
[1759095623215,7.22,206.65,206.59,4.3546]
[1759095623416,10.58996198,206.64,206.6,7.53]
[1759095623611,7.22,206.64,206.6,7.53]
[1759095623810,7.74,206.68,206.6,7.53]
[1759095624014,7.74,206.66,206.6,7.53]
[1759095624315,7.74,206.64,206.6,7.76]
[1759095624512,7.74,206.64,206.59,4.3546]
[1759095624815,4.3529,206.69,206.59,12.1146]
[1759095625020,3.37025794,206.68,206.6,7.76]
[1759095625314,3.37025794,206.67,206.6,7.76]
[1759095625619,3.37025794,206.66,206.6,7.76]
[1759095625918,7.74,206.68,206.6,7.76]
[1759095626217,3.37061026,206.67,206.6,7.76]
[1759095626422,3.37061026,206.66,206.6,7.76]
[1759095626615,7.74,206.68,206.62,12.114]
[1759095626919,11.11068012,206.67,206.62,4.354]
[1759095627218,3.37068012,206.66,206.63,7.76]
[1759095627414,7.74,206.67,206.63,7.76]
[1759095627615,3.37075324,206.66,206.62,4.354]
[1759095627808,7.74,206.67,206.62,4.354]
[1759095628020,3.37075165,206.66,206.63,7.76]
[1759095628212,7.74,206.67,206.63,7.76]
[1759095628415,3.37083209,206.66,206.63,7.76]
[1759095628620,7.74,206.67,206.62,4.354]
[1759095628815,3.3706869,206.66,206.63,7.76]
[1759095629021,7.74,206.67,206.63,7.76]
[1759095629221,3.37068929,206.66,206.62,4.354]
[1759095629516,7.74,206.67,206.62,4.354]
[1759095629720,3.37069431,206.66,206.62,4.354]
[1759095629921,7.74,206.67,206.62,4.354]
[1759095630220,3.37069431,206.66,206.63,7.76]
[1759095630410,7.74,206.67,206.63,7.76]
[1759095630614,11.11069848,206.66,206.63,7.76]
[1759095630816,7.74,206.66,206.63,7.76]
[1759095631217,7.74,206.66,206.62,4.354]
[1759095632911,7.74,206.66,206.63,7.76]
[1759095633620,7.74,206.66,206.64,7.76]
[1759095633922,7.74,206.72,206.64,7.76]
[1759095634123,7.74,206.7,206.64,7.76]
[1759095634324,3.37071451,206.69,206.64,7.76]
[1759095634524,7.74,206.67,206.64,7.76]
[1759095634725,3.37071451,206.66,206.64,7.76]
[1759095635026,7.74,206.67,206.64,7.76]
[1759095635326,3.37071705,206.66,206.64,7.76]
[1759095635532,7.74,206.67,206.64,7.76]
[1759095635719,3.37072081,206.66,206.64,7.76]
[1759095635919,7.74,206.67,206.64,7.76]
[1759095636119,3.37071922,206.66,206.64,7.76]
[1759095636321,7.74,206.67,206.64,7.76]
[1759095636526,3.3705765,206.66,206.64,7.76]
[1759095636826,7.74,206.72,206.64,7.76]
[1759095637124,7.74,206.7,206.64,7.76]
[1759095637324,7.74,206.68,206.64,7.76]
[1759095637620,3.36971261,206.67,206.63,4.3538]
[1759095637924,3.36971261,206.66,206.63,4.3538]
[1759095638120,7.74,206.68,206.64,7.76]
[1759095638320,11.11011526,206.67,206.64,7.76]
[1759095638520,3.37011526,206.66,206.64,7.76]